[Event "VIII Open Semana Santa 2024"]
[Site "San Vicente del Raspeig"]
[Date "2024.03.29"]
[Round "4.7"]
[White "Lamard, Guillaume"]
[Black "Dotzer, Lukas"]
[Result "1-0"]
[ECO "E06"]
[WhiteElo "2483"]
[BlackElo "2338"]
[Annotator "TA"]
[PlyCount "89"]
[EventDate "2024.03.27"]
[EventType "swiss"]
[EventCountry "ESP"]
[SourceTitle "playchess.com"]
[Source "ChessBase"]
[SourceQuality "1"]
[TimeControl "5400+30"]

{[%evp 12,89,22,19,20,13,23,14,10,0,0,-10,0,0,4,-12,24,0,12,15,20,14,18,0,33,39,32,8,30,13,8,18,10,6,8,5,12,0,8,0,6,6,8,10,420,31,54,47,48,47,48,59,47,29,50,24,22,25,83,85,308,306,302,295,29974,29979,29979,29979,29980,29981,29981,29982,29982,29983,29982,29983,29984,29985,29985,29986]} 1. Nf3 {[%emt 0:00:30]} Nf6 {[%emt 0:00:30]} 2. g3 {[%emt 0:00:30]} d5 {[%emt 0:00:30]} 3. Bg2 {[%emt 0:00:30]} e6 {[%emt 0:00:30]} 4. O-O {[%emt 0:00:30]} Be7 {[%emt 0:00:30]} 5. c4 {[%emt 0:00:30]} O-O {[%emt 0:00:30]} 6. d4 {[%emt 0:00:30]} c6 {[%emt 0:00:30]} 7. Nc3 {[%emt 0:05:27]} a5 {[%emt 0:00:00]} 8. b3 {[%emt 1:26:03]} Nbd7 {[%emt 0:15:48]} 9. Bf4 {[%emt 0:00:00]} b6 {[%emt 0:11:00] The position is equal.} 10. cxd5 {[%emt 0:00:00]} Nxd5 {[%emt 0:04:59]} 11. Qc2 {[%emt 0:00:00]} Ba6 {[%emt 0:03:34]} 12. Bd2 {[%emt 0:00:00]} Rc8 {[%emt 0:06:39]} 13. Rfe1 {[%emt 0:00:00]} Nxc3 {[%emt 0:11:05]} 14. Bxc3 {[%emt 0:00:00]} c5 {[%emt 0:03:48]} 15. Qb2 {[%emt 0:00:00]} cxd4 {[%emt 0:05:06]} 16. Bxd4 {[%emt 0:00:00]} Bf6 {[%emt 0:01:18]} 17. Rad1 {[%emt 0:00:00]} Bxd4 {[%emt 0:04:28]} 18. Nxd4 {[%emt 0:00:00]} Qf6 {[%emt 0:02:09]} 19. Rd2 {[%emt 0:00:00]} (19. b4 $5 axb4 20. Qxb4 $16) 19... e5 {[%emt 0:12:30] [#]} 20. Nc6 {[%emt 0:00:00]} Rxc6 {[%emt 0:05:44]} 21. Rxd7 {[%emt 0:00:00]} Rd6 {[%emt 0:03:04]} 22. Rd1 {[%emt 0:00:00]} Rxd1+ {[%emt 0:00:33]} 23. Rxd1 {[%emt 0:00:00]} g6 {[%emt 0:01:29]} 24. Qd2 {[%emt 0:00:00]} Re8 {[%emt 0:03:27]} 25. Bf3 {[%emt 0:00:00]} Re7 {[%emt 0:01:15]} 26. Qd8+ {[%emt 0:01:37]} Kg7 {[%emt 0:00:06]} 27. Bg4 {[%emt 0:02:58] [#] Strongly threatening Rd6.} Bb7 $2 {[%emt 0:01:09][%mdl 8192]} (27... Ra7 $1 $11 {and Black stays safe.}) 28. h4 $2 {[%emt 0:00:53]} (28. Rd6 $18 Qg5 29. e3 (29. Rxb6 $2 {is a self mate.} Qc1+)) 28... Qc6 {[%emt 0:00:52]} 29. Bf3 {[%emt 0:00:19] Really sharp!} (29. Qxe7 $2 Qh1#) 29... Qc7 {[%emt 0:01:07]} 30. Bxb7 {[%emt 0:01:35]} (30. Qxc7 {simplifies} Rxc7 31. Bxb7 Rxb7 32. Rd5) 30... Qxd8 {[%emt 0:00:45]} 31. Rxd8 {[%emt 0:00:04]} Rxb7 $14 {[%emt 0:00:04][%mdl 4096] Endgame. KR-KR} 32. Rd6 {[%emt 0:00:55]} Kf8 {[%emt 0:00:37]} 33. g4 {[%emt 0:01:12]} Ke7 {[%emt 0:00:27]} 34. Rc6 {[%emt 0:00:06]} f6 {[%emt 0:00:52]} (34... Kd7 $11 {remains equal.} 35. Rf6 Ke7) 35. Kg2 $16 {[%emt 0:00:45] White is more active.} h5 $2 {[%emt 0:00:32]} (35... a4 $16 {might work better.}) 36. g5 $18 {[%emt 0:01:12]} fxg5 {[%emt 0:00:21]} 37. Rxg6 {[%emt 0:00:14] Threatening mate with Rg7+.} Rd7 $2 {[%emt 0:00:39]} (37... Rb8 $18 38. Rxg5 Ke6 39. Rxh5 Rg8+ 40. Rg5 Rc8) 38. Rg7+ {[%emt 0:01:00] White mates.} (38. Rxg5 Kf6 39. Rxh5 Rd2 $16) 38... Ke6 {[%emt 0:00:09]} 39. Rxd7 {[%emt 0:00:09]} ({Weaker is} 39. Rxg5 Rd2 $16) 39... Kxd7 {[%emt 0:00:05]} 40. hxg5 {[%emt 0:00:04] KP-KP} Ke6 {[%emt 0:00:25]} 41. Kg3 {[%emt 0:00:12]} Kf5 {[%emt 0:00:08]} 42. Kh4 {[%emt 0:00:05]} Kg6 {[%emt 0:00:05]} 43. f3 {[%emt 0:00:23]} b5 {[%emt 0:00:15][%cal Bb6b5,Bb5b4][%mdl 32]} 44. a4 {[%emt 0:00:21]} b4 {[%emt 0:00:10]} 45. e3 {[%emt 0:00:28] Weighted Error Value: White=0.21 (precise) /Black=0.45.  Loses game:     	---       	Black=2      Missed win:     	White=1     	---        Mistake:       	---       	Black=2      Inaccurate:     	White=1     	Black=2      OK:         	White=7     	Black=13     Best:        	White=3     	Black=3} 1-0

[Event "VIII Open Semana Santa 2024"]
[Site "San Vicente del Raspeig"]
[Date "2024.03.29"]
[Round "4.8"]
[White "Baskin, Robert"]
[Black "Martin Duque, Jesus"]
[Result "0-1"]
[ECO "C85"]
[WhiteElo "2461"]
[BlackElo "2332"]
[Annotator "RC"]
[PlyCount "122"]
[EventDate "2024.03.27"]
[EventType "swiss"]
[EventCountry "ESP"]
[SourceTitle "playchess.com"]
[Source "ChessBase"]
[SourceQuality "1"]
[TimeControl "5400+30"]

1. e4 {[%emt 0:00:30]} e5 {[%emt 0:00:30]} 2. Nf3 {[%emt 0:00:30]} Nc6 {[%emt 0:00:30]} 3. Bb5 {[%emt 0:00:30]} a6 {[%emt 0:00:30]} 4. Ba4 {[%emt 0:00:30]} Nf6 5. O-O {[%emt 0:04:44]} Be7 {[%emt 0:02:11]} 6. Bxc6 {[%emt 0:00:53]} dxc6 {[%emt 0:00:36]} 7. d3 {[%emt 0:00:07]} Nd7 {[%emt 0:01:37]} 8. Nbd2 {[%emt 0:03:45]} Bd6 {[%emt 0:02:00]} 9. Nc4 {[%emt 0:01:23]} Qe7 {[%emt 0:02:33]} 10. b3 {[%emt 0:08:59]} f6 {[%emt 0:10:27]} 11. Bb2 {[%emt 1:14:09]} O-O {[%emt 0:05:27]} 12. Re1 {[%emt 0:00:00]} c5 {[%emt 0:27:42]} 13. Nh4 {[%emt 0:00:00]} g6 {[%emt 0:00:37]} 14. Qg4 {[%emt 0:00:00]} Nb6 {[%emt 0:05:15]} 15. Nf5 {[%emt 0:00:00]} Qg7 {[%emt 0:01:44]} 16. Nxb6 {[%emt 0:00:00]} cxb6 {[%emt 0:00:34]} 17. Qf3 {[%emt 0:00:00]} gxf5 {[%emt 0:00:28]} 18. exf5 {[%emt 0:00:00]} Kh8 {[%emt 0:03:28]} 19. Qd5 {[%emt 0:00:00]} Qd7 {[%emt 0:09:48]} 20. f4 {[%emt 0:00:00]} Qc6 {[%emt 0:01:34]} 21. Qxc6 {[%emt 0:00:00]} bxc6 {[%emt 0:00:02]} 22. fxe5 {[%emt 0:00:00]} Bxe5 {[%emt 0:00:32]} 23. Bxe5 {[%emt 0:00:00]} fxe5 {[%emt 0:00:09]} 24. Rxe5 {[%emt 0:00:00]} Bxf5 {[%emt 0:00:17]} 25. Rae1 {[%emt 0:00:00]} Bd7 {[%emt 0:00:55]} 26. Re7 {[%emt 0:00:00]} Rae8 {[%emt 0:00:10]} 27. R1e4 {[%emt 0:00:00]} Rxe7 {[%emt 0:01:03]} 28. Rxe7 {[%emt 0:00:00]} Rd8 {[%emt 0:01:05]} 29. h3 {[%emt 0:00:00]} Kg8 {[%emt 0:00:16]} 30. Kh2 {[%emt 0:00:00]} b5 {[%emt 0:03:34]} 31. g4 {[%emt 0:00:00]} c4 {[%emt 0:00:14]} 32. dxc4 {[%emt 0:00:00]} bxc4 {[%emt 0:03:20]} 33. bxc4 {[%emt 0:00:00]} Be8 {[%emt 0:00:28]} 34. Kg3 {[%emt 0:00:00]} Bf7 {[%emt 0:03:06]} 35. Rc7 {[%emt 0:00:00]} Rd6 {[%emt 0:00:18]} 36. c5 {[%emt 0:00:00]} Re6 {[%emt 0:01:17]} 37. Kf4 {[%emt 0:00:00]} Rh6 {[%emt 0:02:02]} 38. h4 {[%emt 0:00:00]} Bxa2 {[%emt 0:00:44]} 39. h5 {[%emt 0:00:00]} Bf7 {[%emt 0:02:02]} 40. Ra7 {[%emt 0:00:00]} Rf6+ {[%emt 0:01:23]} 41. Ke5 {[%emt 0:00:00]} Kg7 {[%emt 0:01:26]} 42. g5 {[%emt 0:01:31]} Re6+ {[%emt 0:00:03]} 43. Kf5 {[%emt 0:00:10]} Re2 {[%emt 0:01:12]} 44. h6+ {[%emt 0:03:14]} Kf8 {[%emt 0:01:02]} 45. Rxa6 {[%emt 0:00:15]} Be8 {[%emt 0:00:41]} 46. c4 {[%emt 0:03:47]} Ke7 {[%emt 0:00:31]} 47. Kf4 {[%emt 0:01:34]} Rg2 {[%emt 0:01:22]} 48. Ra8 {[%emt 0:01:48]} Rg1 {[%emt 0:02:32]} 49. Rb8 {[%emt 0:00:14]} Bg6 {[%emt 0:03:03]} 50. Rc8 {[%emt 0:02:56]} Rf1+ {[%emt 0:00:14]} 51. Ke3 {[%emt 0:00:41]} Kd7 {[%emt 0:00:15]} 52. Rg8 {[%emt 0:00:12]} Rf5 {[%emt 0:00:24]} 53. Rg7+ {[%emt 0:00:42]} Kc8 {[%emt 0:01:09]} 54. Rg8+ {[%emt 0:00:31]} Kb7 {[%emt 0:00:01]} 55. Rg7+ {[%emt 0:00:25]} Ka6 {[%emt 0:00:11]} 56. Rc7 {[%emt 0:01:52]} Rxc5 {[%emt 0:00:05]} 57. Kf4 {[%emt 0:02:04]} Rf5+ {[%emt 0:00:29]} 58. Kg4 {[%emt 0:00:04]} Kb6 {[%emt 0:00:11]} 59. Rg7 {[%emt 0:00:15]} Re5 {[%emt 0:00:11]} 60. Kf4 {[%emt 0:00:22]} Re4+ {[%emt 0:00:05]} 61. Kg3 {[%emt 0:00:04]} Kc5 {[%emt 0:00:15]} 0-1

[Event "VIII Open Semana Santa 2024"]
[Site "San Vicente del Raspeig"]
[Date "2024.03.29"]
[Round "4.9"]
[White "Trigo Urquijo, Sergio"]
[Black "Garriga Cazorla, Pere"]
[Result "1/2-1/2"]
[ECO "B07"]
[WhiteElo "2387"]
[BlackElo "2460"]
[Annotator "TA"]
[PlyCount "48"]
[EventDate "2024.03.27"]
[EventType "swiss"]
[EventCountry "ESP"]
[SourceTitle "playchess.com"]
[Source "ChessBase"]
[SourceQuality "1"]
[TimeControl "5400+30"]

{[%evp 13,48,39,52,34,54,41,53,52,50,31,52,45,42,42,64,23,31,15,26,-62,-56,-52,-24,-57,-60,-58,0,-13,-14,0,-31,-25,11,0,41,35,54]} 1. d4 {[%emt 0:00:04]} g6 {[%emt 0:05:05]} 2. e4 {[%emt 0:00:30]} Bg7 {[%emt 0:00:30]} 3. Nf3 {[%emt 0:00:30]} d6 4. c3 {[%emt 0:02:46]} Nf6 {[%emt 0:01:00]} 5. Bd3 {[%emt 0:00:11]} O-O {[%emt 0:00:05]} 6. O-O {[%emt 0:00:43]} Nc6 {[%emt 0:00:53]} 7. Re1 {[%emt 0:09:37]} e5 {[%emt 0:03:21]} 8. d5 {[%emt 0:01:29]} Nb8 {[%emt 0:00:39]} 9. c4 {[%emt 0:01:12]} a5 {[%emt 0:00:05]} 10. Nc3 {[%emt 0:02:23]} Na6 {[%emt 0:00:05]} 11. Rb1 {[%emt 0:02:57]} Nd7 {[%emt 0:11:46]} 12. a3 {[%emt 0:06:18]} f5 {[%emt 0:02:34]} 13. b4 {[%emt 0:08:08]} f4 {[%emt 0:01:01]} 14. Nd2 {[%emt 0:04:34] White is more active.} (14. bxa5 Nac5 $15) 14... g5 {[%emt 0:05:24]} 15. Be2 {[%emt 0:10:39]} ({Of course not} 15. bxa5 Nac5 16. Be2 Nf6 $15) 15... Nf6 {[%emt 0:01:34]} 16. g4 {[%emt 0:05:01] [#]} (16. f3 $11) 16... h5 $1 $15 {[%emt 0:04:42]} 17. h3 {[%emt 0:02:18]} Bd7 {[%emt 0:01:06]} (17... Rf7 {seems wilder.} 18. Kg2 Qd7 19. f3 Bf8) 18. f3 {[%emt 0:02:00]} (18. Kg2 {is more complex.} Qc8 19. f3 Qe8 20. Rh1) 18... axb4 {[%emt 0:07:49]} (18... Kf7 {is interesting.} 19. Kg2 Rh8 20. Rh1 axb4 21. axb4 Rh6) 19. axb4 {[%emt 0:00:09]} c6 {[%emt 0:00:07]} ({Black should try} 19... Kf7 $15) 20. dxc6 {[%emt 0:03:01]} bxc6 {[%emt 0:00:31]} 21. b5 {[%emt 0:03:06]} Nc5 {[%emt 0:01:23]} 22. Nb3 {[%emt 0:02:57]} Nxb3 {[%emt 0:00:45]} 23. Rxb3 {[%emt 0:00:42]} hxg4 {[%emt 0:00:06]} 24. hxg4 {[%emt 0:00:42]} Qb6+ {[%emt 0:02:44] Weighted Error Value: White=0.18 (very precise) /Black=0.14 (very precise) .  Mistake:       	White=1     	Black=1      Inaccurate:     	White=2     	Black=3      OK:         	White=6     	Black=7      Best:        	White=1     	---} 1/2-1/2

[Event "VIII Open Semana Santa 2024"]
[Site "San Vicente del Raspeig"]
[Date "2024.03.29"]
[Round "4.10"]
[White "Vega Gutierrez, Sabrina"]
[Black "Levin, Guy"]
[Result "0-1"]
[ECO "B32"]
[WhiteElo "2382"]
[BlackElo "2452"]
[Annotator "TA"]
[PlyCount "84"]
[EventDate "2024.03.27"]
[EventType "swiss"]
[EventCountry "ESP"]
[SourceTitle "playchess.com"]
[Source "ChessBase"]
[SourceQuality "1"]
[TimeControl "5400+30"]

{[%evp 11,84,20,35,26,123,20,92,88,220,25,53,58,52,28,45,43,55,0,0,-26,-21,-34,-33,-31,-23,-36,-18,-39,-25,-43,-46,-54,-56,-110,-111,-118,-16,-19,-28,-43,-29,-45,-18,-10,0,-20,-17,-50,-56,-64,-56,-114,-80,-95,-74,-104,-61,-76,-59,-83,-77,-77,-72,-88,0,-72,-100,-145,-145,-507,-505,-512,-501,-648,-614]} 1. e4 {[%emt 0:00:05]} c5 {[%emt 0:00:06]} 2. Nf3 {[%emt 0:02:48]} Nc6 {[%emt 0:00:30]} 3. d4 {[%emt 0:00:30]} cxd4 {[%emt 0:00:30]} 4. Nxd4 {[%emt 0:00:30]} e5 {[%emt 0:00:30]} 5. Nb5 {[%emt 0:00:30]} d6 {[%emt 0:00:30]} 6. c4 {[%emt 0:00:30]} Be6 {[%emt 0:00:30]} 7. N1c3 {[%emt 0:00:30]} g6 {[%emt 0:00:30]} (7... a6 $11 {keeps the balance.}) 8. Bd3 {[%emt 0:00:30]} (8. Nd5 $16) 8... Bg7 {[%emt 0:00:30]} (8... a6 $11 {remains equal.}) 9. Nd5 $16 {[%emt 0:00:30] Strongly threatening Ndc7+. White is better.} Nf6 {[%emt 0:00:31]} (9... Kf8 $16 {was worth a try.}) 10. Nbc3 $2 {[%emt 0:00:40]} (10. Nbc7+ $18 Kf8 11. Nxa8 Qxa8 12. O-O) 10... O-O {[%emt 0:05:01]} 11. Bg5 {[%emt 0:03:14]} Nd4 {[%emt 0:08:50]} 12. h4 {[%emt 0:12:19][%cal Oh4h5]} Bxd5 {[%emt 0:02:32]} 13. Nxd5 {[%emt 0:10:27]} Ne6 {[%emt 0:00:03]} 14. Qd2 {[%emt 0:07:24]} (14. Bxf6 $14 Bxf6 15. g3) 14... Nxg5 $11 {[%emt 0:02:30]} 15. hxg5 {[%emt 0:00:20]} Nxd5 {[%emt 0:01:13]} 16. cxd5 {[%emt 0:00:12]} f6 {[%emt 0:03:31]} 17. gxf6 {[%emt 0:04:14]} Bxf6 {[%emt 0:07:45]} 18. Qb4 {[%emt 0:02:32][%cal Oa1c1]} Qd7 {[%emt 0:06:07]} 19. Rc1 {[%emt 0:10:30]} Bg5 {[%emt 0:00:30]} 20. Rc3 {[%emt 0:01:18]} Qf7 {[%emt 0:08:24]} 21. Rc2 {[%emt 0:10:09]} Rac8 {[%emt 0:01:38]} 22. O-O {[%emt 0:03:01]} (22. Qa4 $15) 22... Rxc2 $17 {[%emt 0:01:52]} 23. Bxc2 {[%emt 0:00:02][%cal Bd3c2,Bc2a4,Ba4d1][%mdl 32]} Rc8 {[%emt 0:10:37]} ({Better is} 23... Be3 $1 $17 {[%cal Re3f2]} 24. Qe1 Bd4) 24. Ba4 {[%emt 0:03:13]} Rc5 {[%emt 0:03:23]} 25. Rd1 {[%emt 0:03:24]} h5 {[%emt 0:09:28]} 26. Rd3 {[%emt 0:01:44]} h4 {[%emt 0:00:21]} 27. Bd1 {[%emt 0:01:43]} Qf4 {[%emt 0:03:42]} 28. Qe1 {[%emt 0:07:55]} Rc4 {[%emt 0:01:24] White is weak on the dark squares} 29. Re3 {[%emt 0:00:49]} Rc1 {[%emt 0:05:44]} 30. Qe2 {[%emt 0:00:36]} Kg7 {[%emt 0:04:02] Black is much more active.} 31. Rc3 {[%emt 0:05:30]} ({White should play} 31. Rd3 $15) 31... Ra1 {[%emt 0:00:39][%cal Of4d2] [#] And now ...Qd2! would win.} 32. Kf1 {[%emt 0:05:31]} Kh6 {[%emt 0:05:26][%cal Of4d2]} ({Of course not} 32... Rxa2 33. g3 Qf7 34. gxh4 Bxh4 35. Qc2) 33. a3 {[%emt 0:01:56]} a6 {[%emt 0:00:18]} 34. Rd3 {[%emt 0:01:53]} Rb1 {[%emt 0:00:50]} 35. Rb3 {[%emt 0:00:29]} Qc1 $40 {[%emt 0:00:54][%mdl 128] Black has strong attack.} 36. Ke1 {[%emt 0:00:02]} b5 {[%emt 0:00:22]} 37. Rc3 {[%emt 0:00:54]} Qf4 {[%emt 0:01:04]} ({Black should try} 37... Qxb2 $17 38. Qxb2 Rxb2) 38. Qc2 {[%emt 0:00:27]} (38. g3 $1 $11 hxg3 39. fxg3) 38... Ra1 {[%emt 0:01:19]} 39. g3 {[%emt 0:00:27] [#]} Qg4 {[%emt 0:01:34] White must now prevent ...h3.} 40. gxh4 {[%emt 0:00:06][%mdl 8192]} (40. Qe2 $17 {was the crucial defense.} Qxe2+ 41. Kxe2) 40... Bxh4 $19 {[%emt 0:00:35] ( -> ...Qg1+). Black is clearly winning.} 41. Qd2+ {[%emt 0:00:40]} Kg7 {[%emt 0:01:06]} 42. Rc7+ {[%emt 0:00:51]} Kg8 {[%emt 0:00:02] Weighted Error Value: White=0.53/Black=0.23 (precise) .  Loses game:     	White=1     	---        Missed win:     	White=1     	---        Mistake:       	White=5     	Black=5      Inaccurate:     	White=4     	Black=3      OK:         	White=7     	Black=13     Best:        	---       	Black=2} 0-1

[Event "VIII Open Semana Santa 2024"]
[Site "San Vicente del Raspeig"]
[Date "2024.03.29"]
[Round "4.11"]
[White "Gkoumas, Georgios"]
[Black "Aronsson, Marten"]
[Result "1/2-1/2"]
[ECO "C48"]
[WhiteElo "2445"]
[BlackElo "2285"]
[Annotator "TA"]
[PlyCount "51"]
[EventDate "2024.03.27"]
[EventType "swiss"]
[EventCountry "ESP"]
[SourceTitle "playchess.com"]
[Source "ChessBase"]
[SourceQuality "1"]
[TimeControl "5400+30"]

{[%evp 9,51,19,18,27,30,30,27,31,25,20,19,22,12,8,28,30,27,25,32,18,28,6,22,25,23,8,15,16,22,0,0,0,0,0,0,0,0,0,0,0,0,0,0,0]} 1. e4 {[%emt 0:00:30]} e5 {[%emt 0:00:30]} 2. Nf3 {[%emt 0:00:30]} Nc6 {[%emt 0:00:30]} 3. Nc3 {[%emt 0:08:19]} Nf6 {[%emt 0:00:07]} 4. Bb5 {[%emt 0:00:03]} Bd6 {[%emt 0:00:57]} 5. d3 {[%emt 0:00:42]} O-O {[%emt 0:00:30]} 6. O-O {[%emt 0:00:10]} Nd4 {[%emt 0:05:13]} 7. Nxd4 {[%emt 0:06:09]} exd4 {[%emt 0:00:05]} 8. Ne2 {[%emt 0:00:06] White has an edge.} c6 {[%emt 0:00:19]} 9. Bc4 {[%emt 0:00:41]} Bc7 {[%emt 0:02:33]} 10. Bf4 {[%emt 0:00:20]} Bxf4 {[%emt 0:09:29]} 11. Nxf4 {[%emt 0:01:11]} Qc7 {[%emt 0:00:09]} 12. Nh5 {[%emt 0:11:52]} Qe5 {[%emt 0:00:37]} 13. Nxf6+ {[%emt 0:02:51]} Qxf6 {[%emt 0:00:05]} 14. Qh5 {[%emt 0:08:51]} d6 {[%emt 0:03:05]} 15. Rae1 {[%emt 0:00:20]} Qf4 {[%emt 0:10:10]} (15... Be6 {simplifies} 16. Bxe6 Qxe6 17. Qa5 c5) 16. a4 {[%emt 0:08:58]} Be6 {[%emt 0:01:43]} 17. g3 {[%emt 0:02:50]} Qe5 {[%emt 0:03:42] The position is equal.} 18. Qxe5 {[%emt 0:03:17]} dxe5 {[%emt 0:00:04]} 19. Bxe6 {[%emt 0:00:10]} fxe6 $11 {[%emt 0:00:04][%mdl 4096] Endgame. KRR-KRR} 20. f4 {[%emt 0:00:37]} exf4 {[%emt 0:02:13]} 21. Rxf4 {[%emt 0:00:06]} e5 {[%emt 0:07:15]} 22. Rf5 {[%emt 0:01:43]} Rae8 {[%emt 0:00:06]} 23. Kf2 {[%emt 0:00:32]} g6 {[%emt 0:01:51]} 24. Rxf8+ {[%emt 0:00:40]} Kxf8 {[%emt 0:00:18]} 25. c3 {[%emt 0:02:38]} Rd8 {[%emt 0:00:35]} 26. Ke2 {[%emt 0:00:05] A rather calm draw.   Weighted Error Value: White=0.03 (flawless) /Black=0.03 (flawless) .  OK:         	White=9     	Black=9} 1/2-1/2

[Event "VIII Open Semana Santa 2024"]
[Site "San Vicente del Raspeig"]
[Date "2024.03.29"]
[Round "4.12"]
[White "Adhiban, B.."]
[Black "Filip, Lucian-Ioan"]
[Result "1/2-1/2"]
[ECO "B41"]
[WhiteElo "2541"]
[BlackElo "2359"]
[Annotator "TA"]
[PlyCount "112"]
[EventDate "2024.03.27"]
[EventType "swiss"]
[EventCountry "ESP"]
[SourceTitle "playchess.com"]
[Source "ChessBase"]
[SourceQuality "1"]
[TimeControl "5400+30"]

{[%evp 26,112,-15,-18,0,0,-9,-5,0,0,-9,-20,-26,-21,-23,-29,-27,-25,-22,-17,-8,-14,-21,-12,-12,-17,-16,-2,0,0,0,-31,0,0,0,0,0,-11,-9,-9,0,0,0,0,0,0,0,0,0,0,0,0,0,0,0,0,0,0,0,0,0,0,0,0,0,0,0,0,0,0,0,0,0,0,0,-10,-10,-10,-10,-47,-47,-47,-47,-47,-47,-47,-47,-47,0]} 1. e4 {[%emt 0:00:03]} c5 {[%emt 0:07:02]} 2. Nf3 {[%emt 0:00:30]} e6 {[%emt 0:00:30]} 3. d4 {[%emt 0:00:30]} cxd4 {[%emt 0:00:30]} 4. Nxd4 {[%emt 0:00:30]} a6 {[%emt 0:00:30]} 5. h3 {[%emt 0:00:30]} Nf6 {[%emt 0:00:30]} 6. Bd3 {[%emt 0:05:37] B41: Sicilian: Kan Variation: 5 c4.} Qb6 $146 {[%emt 0:00:02]} ({Predecessor:} 6... Nc6 7. Nxc6 bxc6 8. Bf4 d5 9. Nd2 g6 10. O-O Bg7 11. c4 O-O 12. Re1 Nh5 {1-0 Paravyan,D (2601)-Indjic,A (2618) Titled Tuesday intern op 25th Apr Early blitz 2023 (7)}) 7. Nb3 {[%emt 0:01:08]} Nc6 {[%emt 0:02:41]} 8. O-O {[%emt 0:00:11]} Be7 {[%emt 0:03:22]} 9. Be3 {[%emt 0:14:39]} Qc7 {[%emt 0:00:28]} 10. f4 {[%emt 0:00:05]} d6 {[%emt 0:08:06]} 11. a4 {[%emt 0:04:48]} e5 {[%emt 0:14:29]} 12. a5 {[%emt 0:10:27]} exf4 {[%emt 0:03:14]} 13. Bb6 {[%emt 0:03:47]} Qb8 {[%emt 0:00:05]} 14. Rxf4 {[%emt 0:00:07]} O-O {[%emt 0:02:42]} 15. Nc3 {[%emt 0:01:00]} Be6 {[%emt 0:03:37]} 16. Nd5 {[%emt 0:14:53]} Bxd5 {[%emt 0:03:46]} 17. exd5 {[%emt 0:00:03]} Ne5 {[%emt 0:00:07]} 18. Kh1 {[%emt 0:00:13]} g6 {[%emt 0:04:57]} 19. Be2 {[%emt 0:00:15]} Nfd7 {[%emt 0:01:19]} 20. Bg1 {[%emt 0:01:29]} Qc7 {[%emt 0:01:42]} 21. Rf1 {[%emt 0:06:12]} Rac8 {[%emt 0:02:42]} 22. c3 {[%emt 0:03:37]} Rfe8 {[%emt 0:02:47]} 23. Ra4 {[%emt 0:00:32]} Bf8 {[%emt 0:00:23]} 24. Rb4 {[%emt 0:00:19]} Bg7 {[%emt 0:08:02]} 25. Bf2 {[%emt 0:00:10]} Rb8 {[%emt 0:03:20]} 26. Qd2 {[%emt 0:01:42]} Nf6 {[%emt 0:08:26]} 27. Bh4 {[%emt 0:00:29]} Nfd7 {[%emt 0:01:26]} 28. Qc2 {[%emt 0:12:23]} Nc5 {[%emt 0:05:30]} 29. Nxc5 {[%emt 0:04:49]} Qxc5 {[%emt 0:01:12]} 30. Qb3 {[%emt 0:00:06]} Nd7 {[%emt 0:04:37]} 31. Bf3 {[%emt 0:03:16]} Qxa5 {[%emt 0:07:04]} 32. Rxb7 {[%emt 0:00:05]} Rxb7 {[%emt 0:00:11]} 33. Qxb7 {[%emt 0:00:02]} Qb5 {[%emt 0:00:13]} 34. Qxb5 {[%emt 0:00:05]} axb5 {[%emt 0:00:01]} 35. Ra1 {[%emt 0:02:37]} Be5 {[%emt 0:01:42]} 36. Ra5 {[%emt 0:03:27]} Rb8 {[%emt 0:00:14]} 37. Be1 $1 {[%emt 0:00:05]} Nc5 {[%emt 0:00:45]} 38. Be2 {[%emt 0:02:59]} Na4 {[%emt 0:00:02]} 39. Rxb5 {[%emt 0:03:36]} Rxb5 {[%emt 0:00:02]} 40. Bxb5 {[%emt 0:00:04]} Nxb2 {[%emt 0:00:03]} 41. Kg1 {[%emt 0:00:32]} Nd1 {[%emt 0:00:15]} 42. c4 {[%emt 0:00:02]} Nb2 {[%emt 0:00:43]} 43. Kf1 {[%emt 0:00:50]} Nd3 {[%emt 0:00:06]} 44. Bd2 {[%emt 0:00:08]} f5 {[%emt 0:02:18]} 45. Ke2 {[%emt 0:00:06]} Nc5 {[%emt 0:00:04]} 46. Be3 {[%emt 0:00:07]} Kf7 {[%emt 0:00:16]} 47. Bxc5 {[%emt 0:00:08]} dxc5 {[%emt 0:00:03]} 48. Kf3 {[%emt 0:00:04]} h5 {[%emt 0:00:12]} 49. Ba4 {[%emt 0:00:05]} g5 {[%emt 0:00:31]} 50. g4 {[%emt 0:00:18]} fxg4+ {[%emt 0:00:15]} 51. hxg4 {[%emt 0:00:04]} h4 {[%emt 0:00:07]} 52. Kg2 {[%emt 0:00:02]} Kf6 {[%emt 0:00:06]} 53. Kh3 {[%emt 0:00:03]} Bd6 {[%emt 0:00:05]} 54. Bb5 {[%emt 0:00:03]} Ke5 {[%emt 0:00:05]} 55. Ba6 {[%emt 0:00:03]} Kf4 {[%emt 0:00:05]} 56. Bb5 {[%emt 0:00:03]} Ke5 {[%emt 0:00:05]} (56... Ke4 $15) 1/2-1/2